Cogmind - Beta 10.1 @@@ ROGUE MODE // 2020.09.25 @ 22:36:35 Player: dsummers Result: Self-destructed Performance ------------- Evolutions (1) 500 Regions Visited (3) 600 Robots Destroyed (20) 100 Value Destroyed (470) 470 Prototype IDs (2) 40 Alien Tech Used (0) 0 Bonus (0) 0 TOTAL SCORE: 1710 Bonus ------- None Cogmind --------- Core Integrity 18/400 Matter 241/300 Energy 100/100 System Corruption 0% Temperature Cool (0) Movement Core (200) Ox3 Location -9/Materials Parts ------- > --- POWER (1) -------- (None) > --- PROPULSION (3) --- (None) > --- UTILITY (3) ------ Medium Storage Unit Signal Interpreter > --- WEAPON (2) ------- Hammer > --- INVENTORY (8) ---- High-capacity Storage Unit Signal Interpreter Integration Mediator Mini Grenade Launcher Datajack Peak State ------------ > --- POWER ------------ Light Nuclear Core > --- PROPULSION ------- Aluminum Leg Aluminum Leg Compact Wheel > --- UTILITY ---------- Medium Storage Unit Improved Sensor Array Signal Interpreter > --- WEAPON ----------- Small Laser Small Laser > --- INVENTORY -------- Ion Engine Small Storage Unit High-capacity Storage Unit Integration Mediator Small Laser Rocket Launcher Datajack Hammer [Rating: 13] Favorites ----------- Power Ion Engine Engine Ion Engine Power Core Light Nuclear Core Propulsion Aluminum Leg Leg Aluminum Leg Wheel Compact Wheel Utility Medium Storage Unit Device Terrain Scanner Storage Medium Storage Unit Processor Signal Interpreter Weapon Light Assault Rifle Energy Gun Small Laser Ballistic Gun Light Assault Rifle Launcher Mini Grenade Launcher Impact Weapon Hammer Build | -11 -10 -10 -9 ------- Run | Scr Mat Min Mat Slots Evolved 2 | . . . 2 Power . | . . . . Propulsion 1 | . . . 1 Utility 1 | . . . 1 Weapon . | . . . . Parts Attached 33 | 7 12 2 12 Power 5 | 1 3 . 1 Engine 4 | 1 3 . . Core 1 | . . . 1 Reactor . | . . . . Propulsion 9 | 2 3 1 3 Treads . | . . . . Leg 5 | . 2 1 2 Wheel 4 | 2 1 . 1 Hover . | . . . . Flight . | . . . . Utility 5 | 1 2 1 1 Device 2 | . 1 . 1 Storage 2 | 1 1 . . Processor 1 | . . 1 . Hackware . | . . . . Protection . | . . . . Artifact . | . . . . Weapon 14 | 3 4 . 7 Energy Gun 4 | . . . 4 Energy Cannon . | . . . . Ballistic Gun 6 | 3 3 . . Ballistic Cannon . | . . . . Launcher 2 | . . . 2 Special Weapon . | . . . . Impact Weapon 2 | . 1 . 1 Slashing Weapon . | . . . . Piercing Weapon . | . . . . Special Melee Weapon . | . . . . Unidentified Prototypes . | . . . . Parts Lost 17 | . 5 . 12 Power 2 | . 1 . 1 Propulsion 7 | . 2 . 5 Utility 2 | . 1 . 1 Weapon 6 | . 1 . 5 Highest Loss Streak 10 | . 3 . 10 Average Slot Usage (%) 91 | . 92 100 78 Engine 10 | . 12 14 2 Core 2 | . . . 8 Leg 19 | . 14 28 16 Wheel 6 | . 12 . 3 Device 4 | . 7 . 4 Storage 16 | . 16 22 11 Processor 4 | . . 5 11 Energy Gun 4 | . . . 15 Ballistic Gun 20 | . 24 28 4 Impact Weapon 1 | . 2 . . Naked Turns . | . . . . Heaviest Build 19 | 10 19 19 16 Greatest Support 26 | 20 26 20 20 Greatest Overweight (x) 4 | . 4 . 1 Average Overweight (x) . | . . . . Largest Inventory Capacity 10 | 6 10 10 8 Average Capacity 7 | 5 6 9 8 Most Carried 10 | 4 6 10 8 Average Carried 6 | 2 5 7 7 Final Capacity 10 | 6 10 8 8 Final Carried 8 | 4 5 8 5 Class Distribution -------------------- 92% | Mutant 7% | Scavenger-Mutant Dominant Class ---------------- Mutant | -10/Materials Mutant | -10/Mines Mutant | -9/Materials Resources | -11 -10 -10 -9 ----------- Run | Scr Mat Min Mat Matter Collected 626 | 229 193 146 58 Remotely . | . . . . Salvage Created 550 | . 297 82 171 Parts 37 | . 21 4 12 Haulers Intercepted 1 | . 1 . . Recyclers Shooed 1 | . 1 . . Parts Field Recycled . | . . . . Retrieved Matter . | . . . . Parts Self-Destructed . | . . . . Prevented . | . . . . Kills | -11 -10 -10 -9 ------- Run | Scr Mat Min Mat Combat Hostiles Destroyed 15 | . 8 2 5 Guns 12 | . 8 2 2 AOE 3 | . . . 3 Classes Destroyed 6 | . 5 . 1 Worker 1 | . 1 . . Tunneler 1 | . . . 1 Hauler 1 | . 1 . . Watcher 2 | . 1 . 1 Swarmer 6 | . 6 . . Grunt 9 | . 2 2 5 Best Kill Streak 4 | . 3 2 4 Combat Bots Only 3 | . 3 2 3 Max Kills in Single Turn 2 | . 1 1 2 Gunslinging . | . . . . Exploded 2 | . . . 2 Melee . | . . . . Uniques/NPCs Destroyed . | . . . . Combat | -11 -10 -10 -9 -------- Run | Scr Mat Min Mat Damage Taken 1801 | . 521 198 1082 Core 470 | . 62 26 382 Absorbed by Shields . | . . . . Core Remaining (%) 82 | 100 . 64 . Volleys Fired 78 | . 50 11 17 Largest 2 | . 2 2 2 Hottest 80 | . 40 40 80 Shots Fired 140 | . 89 22 29 Gun 136 | . 89 22 25 Cannon . | . . . . Launcher 4 | . . . 4 Special . | . . . . Kinetic 125 | . 89 22 14 Thermal 11 | . . . 11 Explosive 4 | . . . 4 Electromagnetic . | . . . . Robot Hit Streak 10 | . 10 4 6 Robot Miss Streak 4 | . 4 2 2 Penetration Max . | . . . . Secondary Targets 2 | . 2 . . Max Gunslinging Chain 1 | . 1 . . Shots Hit Robots 93 | . 58 15 20 Core Hits 45 | . 20 7 18 Critical Hits . | . . . . Critical Kills . | . . . . Critical Parts Destroyed . | . . . . Melee Attacks 21 | . 15 . 6 Impact 21 | . 15 . 6 Slashing . | . . . . Piercing . | . . . . Sneak Attacks 1 | . 1 . . Combat Hostiles . | . . . . Follow-up Attacks . | . . . . Damage Inflicted 1410 | . 602 124 684 Guns 779 | . 506 124 149 Cannons . | . . . . Explosions 483 | . . . 483 Melee 148 | . 96 . 52 Ramming . | . . . . Kinetic 715 | . 506 124 85 Thermal 64 | . . . 64 Explosive 483 | . . . 483 Electromagnetic . | . . . . Impact 148 | . 96 . 52 Slashing . | . . . . Piercing . | . . . . Highest Corruption 6 | . 6 6 . Average Corruption 5 | . 4 6 . Corruption Purged . | . . . . Effects 30 | . 15 15 . Message Errors 7 | . 3 4 . Matter Fused 4 | . 3 1 . Heat Flow Errors 5 | . 3 2 . Energy Discharges 2 | . . 2 . Data Loss (minor) 4 | . 2 2 . Data Loss (major) 1 | . . 1 . Targeting Errors 7 | . 4 3 . Overload Shots . | . . . . Overflow Damage 20 | . 20 . . Projectiles . | . . . . Explosions . | . . . . Melee 20 | . 20 . . Knockbacks . | . . . . Impact . | . . . . Kinetic . | . . . . Secondary . | . . . . Self-Inflicted Damage . | . . . . Shots . | . . . . Rammed . | . . . . Targets Rammed . | . . . . Kicked . | . . . . Crushed . | . . . . Highest Temperature 221 | . 221 213 55 Average Temperature 46 | . 59 58 15 Received Heat Transfer 555 | . 150 117 288 Siege Activations . | . . . . Robots Corrupted . | . . . . Combat Hostiles . | . . . . Parts Fried 1 | . 1 . . Impact Corruptions 2 | . 2 . . Robots Melted . | . . . . Combat Hostiles . | . . . . Parts Melted 1 | . . . 1 Heat Transferred 150 | . . . 150 Parts Sabotaged . | . . . . Parts Stolen . | . . . . Parts Stripped . | . . . . Power Chain Reactions . | . . . . Missiles Intercepted . | . . . . Alert | -11 -10 -10 -9 ------- Run | Scr Mat Min Mat Peak Influence 161 | . 161 54 106 Initial 4 | . . 4 . Average 58 | . 95 15 53 Maximum Alert Level . | . . . . Low Security (%) 100 | 100 100 100 100 Level 1 . | . . . . Level 2 . | . . . . Level 3 . | . . . . Level 4 . | . . . . Level 5 . | . . . . High Security . | . . . . Max Security . | . . . . Squads Dispatched 2 | . . . 2 Investigation 1 | . . . 1 Extermination . | . . . . Reinforcement 1 | . . . 1 Assault . | . . . . Garrison . | . . . . Intercept . | . . . . Construction Impeded . | . . . . Haulers Reinforced . | . . . . Stealth | -11 -10 -10 -9 --------- Run | Scr Mat Min Mat Distress Signals . | . . . . Communications Jammed . | . . . . Distress Signals . | . . . . Times Spotted 29 | . 14 2 13 Peak Tracking Total 8 | . 4 2 8 Tactical Retreats 2 | . 1 . 1 Traps | -11 -10 -10 -9 ------- Run | Scr Mat Min Mat Traps Triggered 4 | . 4 . . Indirectly . | . . . . Trap Hack Attempts . | . . . . Triggered . | . . . . Disarmed 6 | . . . 6 Reprogrammed . | . . . . Reused . | . . . . Traps Extracted . | . . . . Installed . | . . . . Triggered . | . . . . Machines | -11 -10 -10 -9 ---------- Run | Scr Mat Min Mat Machines Disabled 1 | . . . 1 Max in Single Turn 1 | . . . 1 Machines Sabotaged . | . . . . Garrisons Compromised . | . . . . Overloaded Fab Kills . | . . . . Fab Network Shutdowns . | . . . . Hacking | -11 -10 -10 -9 --------- Run | Scr Mat Min Mat Machines Accessed 15 | . 10 . 5 Terminals 13 | . 8 . 5 Fabricators . | . . . . Repair Stations . | . . . . Recycling Units 2 | . 2 . . Scanalyzers . | . . . . Garrison Access . | . . . . Total Hacks 59 | . 39 . 20 Successful 45 | . 30 . 15 Failed 14 | . 9 . 5 Catastrophic 1 | . . . 1 Database Lockouts . | . . . . Manual 40 | . 28 . 12 Terminals 52 | . 32 . 20 Fabricators . | . . . . Repair Stations . | . . . . Recycling Units 7 | . 7 . . Scanalyzers . | . . . . Garrison Access . | . . . . Terminal Hacks 20 | . 13 . 7 Robot Analysis 1 | . 1 . . Prototype ID Bank 1 | . 1 . . Branch Access Points 1 | . 1 . . Emergency Access Points 1 | . 1 . . Terminal Index 2 | . 1 . 1 Recycling Unit Index 1 | . 1 . . Alert Level 2 | . 2 . . Locate Traps 2 | . 1 . 1 Disarm Traps 1 | . . . 1 Dispatch Records 2 | . 1 . 1 Transport Status 1 | . 1 . . Recall Investigation 1 | . . . 1 Hauler Manifests 1 | . 1 . . Registered Components 1 | . . . 1 Zone Layout 2 | . 1 . 1 Fabricator Hacks . | . . . . Repair Station Hacks . | . . . . Recycling Unit Hacks 4 | . 4 . . Report Inventory 2 | . 2 . . Retrieve Components 2 | . 2 . . Scanalyzer . | . . . . Garrison Access Hacks . | . . . . Unauthorized Hacks 21 | . 13 . 8 Terminals 18 | . 10 . 8 Track 3 | . 1 . 2 Assimilate 1 | . . . 1 Botnet 12 | . 8 . 4 Operators 2 | . 1 . 1 Fabricators . | . . . . Repair Stations . | . . . . Recycling Units 3 | . 3 . . Reject 2 | . 2 . . Recyclers 1 | . 1 . . Scanalyzers . | . . . . Garrison Access . | . . . . Data Cores Recovered . | . . . . Used . | . . . . Hacking Detections 13 | . 9 . 4 Full Trace Events 1 | . . . 1 Feedback Events . | . . . . Feedback Blocked . | . . . . Robot Schematics Acquired . | . . . . Robots Built . | . . . . Matter . | . . . . Time . | . . . . Total Robot Build Rating . | . . . . Part Schematics Acquired . | . . . . Parts Built . | . . . . Matter . | . . . . Time . | . . . . Total Part Build Rating . | . . . . Parts Repaired . | . . . . Time . | . . . . Parts Recycled . | . . . . Recycled Matter . | . . . . Retrieved Matter . | . . . . Retrieved Components 10 | . 10 . . Parts Scanalyzed . | . . . . Part Schematics Acquired . | . . . . Parts Damaged . | . . . . Bothacking | -11 -10 -10 -9 ------------ Run | Scr Mat Min Mat Used RIF Installer . | . . . . Robots Hacked . | . . . . Non-combat . | . . . . Combat . | . . . . Robot Hacks Applied . | . . . . Relay Couplers Released . | . . . . Robots Rewired . | . . . . Allies Hacked . | . . . . Hacks Repelled . | . . . . Allies | -11 -10 -10 -9 -------- Run | Scr Mat Min Mat Total Allies . | . . . . Largest Group . | . . . . Highest-Rated Group . | . . . . Highest-Rated Ally . | . . . . Total Orders . | . . . . Ally Attacks . | . . . . Total Damage . | . . . . Kills . | . . . . Allies Corrupted . | . . . . Allies Melted . | . . . . Intel | -11 -10 -10 -9 ------- Run | Scr Mat Min Mat Robot Analysis Total 1 | . 1 . . Derelict Logs Recovered 1 | . . 1 . Drone Launches . | . . . . Drone Recoveries . | . . . . Exploration | -11 -10 -10 -9 ------------- Run | Scr Mat Min Mat Turns Passed 1914 | 43 801 575 495 Spaces Moved 1298 | 38 595 447 218 Core 4 | 2 2 . . Treads . | . . . . Legs 800 | . 185 447 168 Wheels 494 | 36 408 . 50 Hover . | . . . . Flight . | . . . . Fastest Speed 50 | 50 80 120 100 Average Speed 112 | 78 101 120 130 Slowest Speed 250 | 80 250 120 150 Overloaded Moves . | . . . . Propulsion Burnouts . | . . . . Robots Hopped . | . . . . Cave-ins Triggered . | . . . . Exploration Rate (%) 54 | 4 86 97 30 Regions Visited 3 Branch Regions 1 Pre-discovered Areas 2 | . . 2 . Known Exits Taken 2 | . 1 1 . Unknown Exits Taken 1 | 1 . . . Scrap Searched 1 | . . 1 . Spaces Dug 7 | . 7 . . Terrain Destroyed 23 | . 7 . 16 Melee 7 | . 7 . . Projectile . | . . . . AOE 16 | . . . 16 Terrain Rammed . | . . . . Walls Destroyed . | . . . . Machines Disabled . | . . . . Actions | -11 -10 -10 -9 --------- Run | Scr Mat Min Mat Total 1604 | 47 695 468 394 Wait 142 | . 8 2 132 Move 1295 | 37 594 446 218 Hop . | . . . . Pick Up 19 | 3 8 5 3 Fast Attach 15 | 6 3 . 6 Attach 8 | . 3 . 5 Detach 2 | . . . 2 Swap 10 | 1 6 2 1 Drop 13 | . 8 1 4 Fire 78 | . 50 11 17 Melee 21 | . 15 . 6 Ram . | . . . . Kick . | . . . . Crush . | . . . . Escape Stasis . | . . . . Rewire 1 | . . 1 . Trap . | . . . . Miscellaneous . | . . . . Route ------- -11/Scrapyard -10/Materials (discovered 5 exits: *Mat x3 / *Min x2) -10/Mines (discovered 2 exits: *Mat x2) -9/Materials (discovered 1 exit: [*Min]) History --------- Turn | Location | Event 18 | -11/Scrapyard | Discovered new exit (range 15) 44 | -11/Scrapyard | Entered Materials 284 | -10/Materials | Lost 3 parts (1p1n1w) 302 | -10/Materials | Build established: Mutant 331 | -10/Materials | Discovered new exit (range 13) 531 | -10/Materials | Discovered new exit (range 12) 694 | -10/Materials | Identified exit to Mines 703 | -10/Materials | Discovered new exit (range 7) 845 | -10/Materials | Entered Mines 846 | -10/Mines | Learned location of Storage (-8) 856 | -10/Mines | Discovered new exit (range 9) 863 | -10/Mines | Received a Rocket Launcher from a helpful Derelict 888 | -10/Mines | Learned location of Zion (-7) 1172 | -10/Mines | Discovered new exit (range 11) 1197 | -10/Mines | Identified exit to Materials 1420 | -10/Mines | Entered Materials 1420 | -9/Materials | Evolved 2 slots: Propulsion x1, Utility x1 1869 | -9/Materials | Discovered new exit (range 13) 1883 | -9/Materials | Core integrity fell below 50% 1908 | -9/Materials | Core integrity fell below 20% 1915 | -9/Materials | Self-destructed Last Messages --------------- 01879_ Acquired Mni. Grenade Launcher. 01880_ The unstable cave ceiling collapses. 01880_ U-05 Engineer lays Concrete. 01880_ U-05 Engineer builds a Wall. 01881_ G-34 Mercenary destroyed. 01882_ Aluminum Leg destroyed. 01882_ Lgt. Nuclear Core destroyed. 01884_ U-05 Engineer lays Concrete. 01884_ U-05 Engineer builds a Wall. 01885_ Sml. Laser destroyed. 01885_ U-05 Engineer lays Concrete. 01887_ Acquired Imp. Aluminum Leg. 01887_ U-05 Engineer lays Concrete. 01891_ Com. Wheel destroyed. 01892_ U-05 Engineer lays Concrete. 01893_ U-05 Engineer builds a Wall. 01893_ U-05 Engineer lays Concrete. 01893_ K-01 Serf collects debris. 01897_ Sml. Laser destroyed. 01912_ Imp. Aluminum Leg destroyed. Map ----- +----------------------------------------------------+ | ????????# #??????????????? | | ????????# """ #+#########????????? | | ????????# ""?"" # #????????? | | ????????# ""?"" # #????????? | | ????????+ "???" # #????????? | | ????????? ???" # #????????? | | ??????????????? # #????????? | | ???????????????? # #????????? | | ???????????? ? ? ########### #????????? | | ????????????? ? ??????????# #????????? | | ??????????? ? ????????????#/#########????????? | | ?????????????? ????########!#????????????????? | | ????????????? #### ##*#????????????????? | | ????????????? ##!#????????????????? | | ???????????? #????????????????? | | ?????????????? ##???????????????? | | ???????????????# ##### #???????????????? | | ???????????????????????###/### #???????????????? | | ???????????????????????# r ## +???????????????? | | ???????????????????????#"" ## #???????????????? | | ??????????????# ??????#"" ## #???????????????? | | ??????????????#